bitfinex-derivatives/quotes_BNBF0:USTF0_20251203
["timestamp","ask_amount","ask_price","bid_price","bid_amount"]
[1764731090817,0.72872027,886.3,884.43,0.19652856]
[1764731091022,0.72872027,886.29,884.43,0.19652856]
[1764731091222,0.72872027,886.28,883.55,0.00926641]
[1764731091521,0.82218458,886.21,884.26,0.19653577]
[1764731091723,0.72872027,886.2,884.26,0.19653577]
[1764731091923,0.72872027,886.19,884.26,0.19653577]
[1764731092120,0.72872027,886.18,884.26,0.19653577]
[1764731092424,0.72872027,886.17,884.26,0.19653577]
[1764731092623,0.72872027,886.16,884.26,0.19653577]
[1764731092824,1.55090485,886.15,883.38,0.00929648]
[1764731093021,0.72872027,886.14,884.16,0.1965602]
[1764731093226,0.72872027,886.13,884.16,0.1965602]
[1764731093426,0.72872027,886.12,883.28,0.00805866]
[1764731093625,0.72872027,886.11,884.16,0.19656464]
[1764731093926,0.72872027,886.1,883.28,0.00837498]
[1764731094125,1.55090485,886.09,883.0,2.78018106]
[1764731094328,0.72872027,886.08,883.0,2.78018106]
[1764731094627,0.72872027,886.07,882.96,2.78018106]
[1764731094824,0.72872027,886.06,882.96,2.78018106]
[1764731095028,0.72872027,886.05,883.73,0.1965713]
[1764731095224,0.72872027,886.04,883.73,0.1965713]
[1764731095428,0.72872027,886.03,883.73,0.1965713]
[1764731095627,0.72872027,886.02,883.73,0.1965713]
[1764731095928,0.72872027,886.01,883.73,0.1965713]
[1764731096127,0.72872027,886.0,883.73,0.1965713]
[1764731096324,0.01002009,886.98,883.73,0.1965713]
[1764731096325,0.72872027,885.99,883.73,0.1965713]
[1764731096526,0.72872027,885.98,883.73,0.1965713]
[1764731096725,0.72872027,885.97,883.73,0.1965713]
[1764731096929,0.72872027,885.96,883.73,0.1965713]
[1764731097130,0.82218458,886.25,883.73,0.1965713]
[1764731097529,0.82218458,886.27,883.73,0.1965713]
[1764731098227,0.82218458,886.28,883.73,0.1965713]
[1764731099126,0.73004253,886.27,883.73,0.1965713]
[1764731099428,0.82218458,886.32,883.73,0.1965713]
[1764731099429,0.73004253,886.26,883.73,0.1965713]
[1764731099628,0.73004253,886.25,883.73,0.1965713]
[1764731099831,0.73004253,886.24,883.73,0.1965713]
[1764731100031,0.73004253,886.23,883.73,0.1965713]
[1764731100228,0.73004253,886.22,883.73,0.1965713]
[1764731100428,0.73004253,886.21,883.73,0.1965713]
[1764731100629,0.73004253,886.2,883.73,0.1965713]
[1764731100829,0.73004253,886.19,883.73,0.1965713]
[1764731101031,0.73004253,886.18,883.73,0.1965713]
[1764731101233,0.73004253,886.17,883.73,0.1965713]
[1764731101529,0.82218458,886.51,883.73,0.1965713]
[1764731102429,0.82218458,886.51,883.79,2.78018106]
[1764731102628,0.72054234,886.5,883.79,2.78018106]
[1764731102829,0.72054234,886.49,883.79,2.78018106]
[1764731103129,0.72054234,886.48,883.82,2.78018106]
[1764731103329,0.72054234,886.47,883.82,2.78018106]
[1764731103528,0.72054234,886.46,883.91,2.78018106]
[1764731103832,0.72054234,886.45,883.91,2.78018106]
[1764731104034,0.72054234,886.44,883.9,2.78018106]
[1764731104333,0.72054234,886.43,883.9,2.78018106]
[1764731104532,0.72054234,886.42,884.01,2.78018106]
[1764731104729,0.72054234,886.41,884.01,2.78018106]
[1764731105033,0.72054234,886.4,883.9,2.78018106]
[1764731105328,0.72054234,886.39,883.9,2.78018106]
[1764731105533,0.72054234,886.38,883.96,2.78018106]
[1764731105833,0.72054234,886.37,883.96,2.78018106]
[1764731106130,0.72054234,886.36,883.96,2.78018106]
[1764731106330,0.72054234,886.35,883.96,2.78018106]
[1764731106530,0.72054234,886.34,884.03,2.78018106]
[1764731106828,0.82218458,886.3,884.03,2.78018106]
[1764731107033,0.82218458,886.3,883.94,2.78018106]
[1764731107529,0.72054234,886.29,883.94,2.78018106]
[1764731107730,0.72054234,886.28,884.03,2.78018106]
[1764731107927,0.72054234,886.27,884.03,2.78018106]
[1764731108133,0.72054234,886.26,884.03,2.78018106]
[1764731108332,0.72054234,886.25,884.03,2.78018106]
[1764731108533,0.72054234,886.24,884.03,2.78018106]
[1764731108729,0.72054234,886.23,884.12,2.78018106]
[1764731108933,0.72054234,886.22,884.12,2.78018106]
[1764731109131,0.72054234,886.21,884.15,2.78018106]
[1764731109428,0.72054234,886.2,884.15,2.78018106]
[1764731109629,0.72054234,886.19,884.21,2.78018106]
[1764731109831,0.72054234,886.18,884.21,2.78018106]
[1764731110032,0.72054234,886.17,884.21,2.78018106]
[1764731110228,0.72054234,886.16,884.29,2.78018106]
[1764731110531,0.72054234,886.15,884.29,2.78018106]
[1764731110731,0.72054234,886.14,884.42,2.78018106]
[1764731110933,0.72054234,886.13,884.42,2.78018106]
[1764731111229,0.72054234,886.12,884.42,2.78018106]
[1764731111432,0.72054234,886.11,884.42,2.78018106]
[1764731111629,0.72054234,886.1,884.42,2.78018106]
[1764731111833,0.72054234,886.09,884.5,2.78018106]
[1764731112128,0.82218458,886.31,884.5,2.78018106]
[1764731112129,0.72054234,886.08,884.5,2.78018106]
[1764731112334,0.72054234,886.07,884.5,2.78018106]
[1764731112534,0.72054234,886.06,884.5,2.78018106]
[1764731112829,0.72054234,886.05,884.36,2.78018106]
[1764731113130,0.72054234,886.04,884.36,2.78018106]
[1764731113332,1.11707841,886.3,884.36,2.78018106]
[1764731113333,0.72054234,886.03,884.36,2.78018106]
[1764731113531,0.72054234,886.02,884.37,2.78018106]
[1764731113730,0.72054234,886.01,884.37,2.78018106]
[1764731113929,0.72054234,886.0,884.39,2.78018106]
[1764731114130,0.72054234,885.99,884.39,2.78018106]
[1764731114333,0.72054234,885.98,884.39,2.78018106]
[1764731114531,0.72054234,885.97,884.4,2.78018106]
[1764731114733,0.72054234,885.96,884.4,2.78018106]
[1764731114937,0.72271092,885.95,884.4,2.78018106]
[1764731115238,0.72271092,885.94,884.4,2.78018106]
[1764731115436,0.72271092,885.93,884.4,2.78018106]
[1764731115737,0.72271092,885.92,884.41,2.78018106]
[1764731115931,0.84131699,886.15,884.41,2.78018106]
[1764731115932,0.72271092,885.91,884.41,2.78018106]
[1764731116232,0.72271092,885.9,884.4,2.78018106]
[1764731116436,0.72271092,885.89,884.4,2.78018106]
[1764731116633,0.72271092,885.88,884.4,2.78018106]
[1764731116837,0.72271092,885.87,884.4,2.78018106]
[1764731117040,0.72271092,885.86,884.4,2.78018106]
[1764731117239,0.72271092,885.85,884.35,2.78018106]
[1764731117441,0.72271092,885.84,884.35,2.78018106]
[1764731117638,0.72271092,885.83,884.35,2.78018106]
[1764731117837,0.72271092,885.82,884.35,2.78018106]
[1764731118034,0.84131699,886.1,884.35,2.78018106]
[1764731118335,0.72238462,886.09,884.35,2.78018106]
[1764731118534,0.72238462,886.08,884.35,2.78018106]
[1764731118737,0.72238462,886.07,884.35,2.78018106]
[1764731119038,0.72238462,886.06,884.35,2.78018106]
[1764731119239,0.72238462,886.05,884.36,2.78018106]
[1764731119540,0.84131699,886.11,884.36,2.78018106]
[1764731119541,0.72238462,886.04,884.36,2.78018106]
[1764731119839,0.72238462,886.03,884.36,2.78018106]
[1764731120040,0.72238462,886.02,884.36,2.78018106]
[1764731120240,0.72238462,886.01,884.36,2.78018106]
[1764731120438,0.72238462,886.0,884.36,2.78018106]
[1764731120635,0.84131699,886.12,884.36,2.78018106]
[1764731120636,0.72238462,885.99,884.36,2.78018106]
[1764731120839,0.72238462,885.98,884.37,2.78018106]
[1764731121135,0.72238462,885.97,884.37,2.78018106]
[1764731121337,0.72238462,885.96,884.37,2.78018106]
[1764731121536,0.72238462,885.95,884.37,2.78018106]
[1764731121740,0.72238462,885.94,884.46,2.78018106]
[1764731121945,0.72238462,885.93,884.46,2.78018106]
[1764731122141,0.01459808,886.83,884.46,2.78018106]
[1764731122341,1.11707841,887.52,886.51,0.84209209]
[1764731122642,1.11707841,887.56,886.54,0.84209209]
[1764731122840,1.11707841,887.61,886.58,0.84209209]
[1764731123037,1.11707841,887.6,886.58,0.84209209]
[1764731123337,1.11707841,887.67,886.56,0.84209209]
[1764731123942,1.11707841,887.63,886.52,0.84209209]
[1764731124135,1.11707841,887.66,886.49,0.84209209]
[1764731124536,1.11707841,887.65,886.48,0.84209209]
[1764731124738,1.11707841,887.64,886.47,0.84209209]
[1764731124941,1.11707841,887.56,886.39,0.84209209]
[1764731125142,1.11707841,887.57,886.37,0.84209209]
[1764731125437,1.11707841,887.57,886.05,1.68418419]
[1764731125438,1.11707841,887.51,886.3,0.84209209]
[1764731126139,1.11707841,887.52,886.29,0.84209209]
[1764731126341,1.11707841,887.56,886.33,0.84209209]
[1764731126736,1.11707841,887.53,886.3,0.84209209]
[1764731127041,1.11707841,887.51,886.28,0.84209209]
[1764731127238,1.11707841,887.52,886.26,0.84209209]
[1764731128143,1.11707841,887.53,886.25,0.84209209]
[1764731128442,1.11707841,887.53,886.24,0.84209209]
[1764731128944,1.67561761,887.69,885.35,0.00847803]
[1764731128945,1.11707841,887.38,886.1,0.84209209]
[1764731129142,1.11707841,887.36,886.07,0.84209209]
[1764731130244,1.11707841,887.37,886.07,0.84209209]
[1764731130947,1.11707841,887.38,886.08,0.84209209]
[1764731131146,1.11707841,887.4,886.09,0.84209209]
[1764731131347,1.11707841,887.38,886.07,0.84209209]
[1764731132047,1.11707841,887.4,886.09,0.84209209]
[1764731132446,0.01385948,888.29,886.19,0.84209209]
[1764731132447,1.11707841,887.51,886.19,0.84209209]
[1764731132847,1.11707841,887.5,886.18,0.84209209]
[1764731133250,1.11707841,887.51,886.17,0.84209209]
[1764731134249,2.79269603,888.31,885.28,0.01294114]
[1764731134250,1.11707841,887.46,886.12,0.84209209]
[1764731134451,1.11707841,887.47,886.12,0.84209209]
[1764731135157,1.11707841,887.5,886.14,0.84209209]
[1764731136154,1.11707841,887.51,886.14,0.84209209]
[1764731136359,1.11707841,887.59,886.21,0.84209209]
[1764731137457,1.11707841,887.59,886.2,0.84209209]
[1764731138157,1.11707841,887.6,886.2,0.84209209]
[1764731138457,1.11707841,887.66,886.26,0.84209209]
[1764731139156,1.11707841,887.66,885.94,1.68418419]
[1764731139157,1.11707841,887.67,886.25,0.84209209]
[1764731139458,1.11707841,887.68,886.25,0.84209209]
[1764731140157,1.11707841,887.69,886.25,0.84209209]
[1764731141153,1.11707841,887.7,886.24,0.84209209]
[1764731142053,1.11707841,887.64,886.17,0.84209209]
[1764731143157,1.11707841,887.65,886.17,0.84209209]
[1764731144252,1.11707841,887.66,886.16,0.84209209]
[1764731145355,1.11707841,887.67,886.16,0.84209209]
[1764731145759,1.11707841,887.66,886.16,0.84209209]
[1764731145960,2.79269603,888.46,886.11,0.84209209]
[1764731145961,1.11707841,887.62,886.11,0.84209209]
[1764731147459,1.11707841,887.63,886.11,0.84209209]
[1764731147657,1.11707841,887.62,886.1,0.84209209]
[1764731148857,1.11707841,887.61,886.09,0.84209209]
[1764731149058,1.11707841,887.55,886.03,0.84209209]
[1764731149362,1.11707841,887.56,886.03,0.84209209]
[1764731150162,1.11707841,887.55,886.03,0.84209209]
[1764731150360,1.11707841,887.56,886.03,0.84209209]
[1764731152157,1.11707841,887.55,886.03,0.84209209]
[1764731152358,1.11707841,887.56,886.04,0.84209209]
[1764731153158,1.11707841,887.55,886.04,0.84209209]
[1764731154066,1.11707841,887.56,886.05,0.84209209]
[1764731154363,1.11707841,887.56,885.89,1.12278946]
[1764731154364,1.11707841,887.61,886.11,0.84209209]
[1764731155264,1.11707841,887.6,886.11,0.84209209]
[1764731156365,1.11707841,887.59,886.12,0.84209209]
[1764731157365,1.11707841,887.58,886.12,0.84209209]
[1764731158267,1.11707841,887.57,886.12,0.84209209]
[1764731158467,1.11707841,887.57,886.13,0.84209209]
[1764731159168,1.11707841,887.56,886.13,0.84209209]
[1764731159571,1.11707841,887.48,886.05,0.84209209]
[1764731159869,1.11707841,887.47,886.04,0.84209209]
[1764731162371,1.11707841,887.46,886.04,0.84209209]
[1764731163274,1.11707841,887.46,886.05,0.84209209]
[1764731164273,1.11707841,887.45,886.05,0.84209209]
[1764731165277,1.11707841,887.44,886.05,0.84209209]
[1764731165973,1.11707841,887.45,886.06,0.84209209]
[1764731166178,1.11707841,887.53,886.16,0.84209209]
[1764731166572,1.11707841,887.54,886.16,0.84209209]
[1764731166774,1.11707841,887.54,886.17,0.84209209]
[1764731166977,1.11707841,887.64,886.27,0.84209209]
[1764731167177,1.11707841,887.63,886.27,0.84209209]
[1764731167673,1.11707841,887.64,886.28,0.84209209]
[1764731167881,1.11707841,887.64,885.31,2.78018106]
[1764731167882,1.11707841,887.63,886.27,0.84209209]
[1764731168179,1.11707841,887.41,886.06,0.84209209]
[1764731168378,1.11707841,887.4,886.07,0.84209209]
[1764731169279,1.11707841,887.39,886.08,0.84209209]
[1764731170482,1.11707841,887.38,886.09,0.84209209]
[1764731171382,1.11707841,887.37,886.08,0.84209209]
[1764731171582,1.11707841,887.26,885.97,0.84209209]
[1764731171783,2.79269603,888.07,885.03,2.78018106]
[1764731171784,1.11707841,887.21,885.92,0.84209209]
[1764731172278,1.11707841,887.21,885.93,0.84209209]
[1764731172479,1.11707841,887.22,885.94,0.84209209]
[1764731173179,1.11707841,887.21,885.95,0.84209209]
[1764731174085,1.11707841,887.21,885.97,0.84209209]
[1764731174384,1.11707841,887.22,885.99,0.84209209]
[1764731174580,1.11707841,887.34,886.11,0.84209209]
[1764731175182,1.11707841,887.33,886.12,0.84209209]
[1764731175382,1.11707841,887.36,886.16,0.84209209]
[1764731176285,1.11707841,887.35,886.17,0.84209209]
[1764731177083,1.11707841,887.33,886.19,0.84209209]
[1764731177486,1.11707841,887.32,886.18,0.84209209]
[1764731178087,1.11707841,887.3,886.2,0.84209209]
[1764731178688,1.11707841,887.31,886.21,0.84209209]
[1764731179183,1.11707841,887.31,885.32,0.01325071]
[1764731179184,1.11707841,887.29,886.23,0.84209209]
[1764731179388,1.11707841,887.28,886.23,0.84209209]
[1764731179886,1.11707841,887.28,886.22,0.84209209]
[1764731180187,1.11707841,887.25,886.25,0.84209209]
[1764731181190,0.19625591,887.01,886.28,0.84209209]
[1764731182088,0.19625591,887.01,886.29,0.84209209]
[1764731183200,0.19625591,887.01,886.3,0.84209209]
[1764731184190,0.19625591,887.01,886.31,0.84209209]
[1764731185099,0.19625591,887.01,886.34,0.84209209]
[1764731185289,0.19625591,887.01,886.49,0.84209209]
[1764731186191,0.19625591,887.01,886.48,0.84209209]
[1764731186893,0.19625591,887.01,886.46,0.84209209]
[1764731187293,0.19625591,887.01,886.47,0.84209209]
[1764731187691,0.19625591,887.01,886.48,0.84209209]
[1764731188296,0.19625591,887.01,886.47,0.84209209]
[1764731189895,0.19625591,887.01,886.46,0.84209209]
[1764731190395,0.19625591,887.01,886.47,0.84356643]
[1764731192395,0.19625591,887.01,886.46,0.84356643]
[1764731196099,0.19625591,887.01,886.45,0.84356643]
[1764731196497,0.19625591,887.01,886.43,0.84356643]
[1764731196802,0.19625591,887.01,886.22,0.84356643]
[1764731197099,0.19625591,887.01,886.23,0.84356643]
[1764731197297,0.19625591,887.01,886.16,0.84356643]
[1764731197701,0.19625591,887.01,886.19,0.84356643]
[1764731198100,0.19625591,887.01,886.21,0.84356643]
[1764731198305,0.19625591,887.01,885.23,2.78018106]
[1764731198306,0.19625591,887.01,886.28,0.84356643]
[1764731198705,0.19625591,887.01,886.3,0.84356643]
[1764731198906,0.19625591,887.01,885.33,2.78018106]
[1764731198907,0.19625591,887.01,886.24,0.84356643]
[1764731199108,0.19625591,887.01,886.25,0.84356643]
[1764731199306,0.19625591,887.01,886.24,0.84356643]
[1764731199503,0.19625591,887.01,886.23,0.84356643]
[1764731200308,0.19625591,887.01,886.21,0.84356643]
[1764731200508,0.19625591,887.01,886.11,0.84356643]
[1764731201006,0.19625591,887.01,885.95,1.12278946]
[1764731201007,1.11707841,886.87,885.96,0.84356643]
[1764731201208,1.11707841,886.89,885.94,0.84356643]
[1764731201904,1.11707841,886.99,886.04,0.84356643]
[1764731202203,0.19625591,887.01,885.09,2.78018106]
[1764731202204,1.31333432,887.01,886.05,0.84356643]
[1764731202404,0.19625591,887.01,886.09,0.84356643]
[1764731203207,0.19625591,887.01,886.04,0.84356643]
[1764731203404,1.31333432,887.01,886.04,0.84356643]
[1764731204209,1.11707841,887.0,886.03,0.84356643]
[1764731204505,1.11707841,887.0,885.87,1.12278946]
[1764731204506,1.11707841,887.0,886.02,0.84356643]
[1764731205206,1.31333432,887.01,886.01,0.84356643]
[1764731206308,0.19625591,887.01,886.01,0.84356643]
[1764731206906,0.19625591,887.01,886.06,0.84356643]
[1764731209711,0.19625591,887.01,886.09,0.84356643]
[1764731211513,0.19625591,887.01,886.11,0.84356643]
[1764731212209,0.19625591,887.01,886.17,0.84356643]
[1764731212413,0.19625591,887.01,885.23,2.78018106]
[1764731212414,0.19625591,887.01,886.32,0.84356643]
[1764731213314,0.19625591,887.01,886.31,0.84356643]
[1764731213515,0.19625591,887.01,886.31,0.84229012]
[1764731214116,0.19625591,887.01,886.3,0.84229012]
[1764731214317,0.19625591,887.01,886.31,0.84229012]
[1764731214716,0.19625591,887.01,886.33,0.84229012]
[1764731216618,0.19625591,887.01,886.44,0.84229012]
[1764731217116,0.19625591,887.01,886.43,0.84229012]
[1764731217314,0.19625591,887.01,886.38,0.84229012]
[1764731217517,0.19625591,887.01,886.37,0.84229012]
[1764731220017,0.19625591,887.01,886.28,0.84229012]
[1764731220918,0.19625591,887.01,886.29,0.84229012]
[1764731227830,0.19625591,887.01,886.33,0.84229012]
[1764731229526,0.19625591,887.01,886.32,0.84229012]
[1764731236130,0.19625591,887.01,886.3,0.84229012]
[1764731236330,0.19625591,887.01,886.16,0.84229012]
[1764731236533,0.19625591,887.01,886.26,0.84229012]
[1764731236734,0.19625591,887.01,886.27,0.84229012]
[1764731237028,0.19625591,887.01,885.6,1.638]
[1764731237029,0.19625591,887.01,886.33,0.84229012]
[1764731237634,0.19625591,887.01,886.31,0.84229012]
[1764731237934,0.19625591,887.01,886.25,0.84229012]
[1764731238434,0.19625591,887.01,886.24,0.84229012]
[1764731239235,0.19625591,887.01,886.22,0.84229012]
[1764731239435,0.19625591,887.01,886.19,0.84229012]
[1764731241434,0.19625591,887.01,886.05,0.84229012]
[1764731244334,0.19625591,887.01,886.04,0.84229012]
[1764731244935,0.19625591,887.01,886.03,0.84229012]
[1764731245234,0.19625591,887.01,886.02,0.84229012]
[1764731250137,0.19625591,887.01,886.03,0.84229012]
[1764731250433,0.19625591,887.01,886.06,0.84229012]
[1764731252938,0.19625591,887.01,886.04,0.84229012]
[1764731253237,0.19625591,887.01,886.03,0.84229012]
[1764731253837,0.19625591,887.01,886.02,0.84229012]
[1764731254837,0.19625591,887.01,886.03,0.84229012]
[1764731256233,0.19625591,887.01,886.05,0.84229012]
[1764731257937,0.19625591,887.01,886.04,0.84229012]
[1764731259438,0.19625591,887.01,886.03,0.84229012]
[1764731261241,0.19625591,887.01,886.04,0.84229012]
[1764731265047,1.31333432,887.01,885.98,0.84229012]
[1764731265346,1.11707841,886.98,885.94,0.84229012]
[1764731266146,1.11707841,886.97,885.93,0.84229012]
[1764731266348,1.11707841,886.87,885.83,0.84229012]
[1764731266747,1.11707841,886.87,885.84,1.282]
[1764731267249,1.11707841,886.88,885.84,1.282]
[1764731268250,1.11707841,886.92,885.84,2.12429012]
[1764731268449,1.11707841,886.94,885.87,0.84229012]
[1764731269247,1.11707841,886.94,885.86,0.84229012]
[1764731270347,1.11707841,886.94,885.85,0.84229012]
[1764731271254,1.11707841,886.97,885.87,0.84229012]
[1764731272254,1.11707841,886.98,885.86,0.84229012]
[1764731276257,1.11707841,886.99,885.86,0.84229012]
[1764731276560,1.11707841,886.98,885.85,0.84229012]
[1764731277258,1.11707841,886.97,885.85,0.84229012]
[1764731281564,1.11707841,886.93,885.84,1.282]
[1764731281759,1.11707841,886.92,885.84,1.282]
[1764731283262,1.11707841,886.91,885.84,1.282]
[1764731283969,1.11707841,886.92,885.84,1.282]
[1764731284565,1.11707841,886.98,885.86,0.84229012]
[1764731285071,1.11707841,887.0,885.88,0.84229012]
[1764731285267,1.11707841,887.0,885.84,1.282]
[1764731285268,0.19625591,887.01,885.99,0.84229012]
[1764731285472,0.19625591,887.01,886.0,0.84229012]
[1764731285667,0.19625591,887.01,886.01,0.84229012]
[1764731286467,0.19625591,887.01,885.99,0.84229012]
[1764731287172,0.19625591,887.01,885.84,1.282]
[1764731287173,0.19625591,887.01,886.0,0.84229012]
[1764731289170,0.19625591,887.01,886.01,0.84229012]
[1764731290373,0.19625591,887.01,886.02,0.84229012]
[1764731291277,0.19625591,887.01,886.03,0.84229012]
[1764731292174,0.19625591,887.01,886.04,0.84229012]
[1764731293076,0.19625591,887.01,886.05,0.84229012]
[1764731294077,0.19625591,887.01,886.07,0.84229012]
[1764731294377,0.19625591,887.01,886.14,0.84229012]
[1764731295377,0.19625591,887.01,886.16,0.84229012]
[1764731296078,0.19625591,887.01,886.17,0.84229012]
[1764731296279,0.19625591,887.01,886.18,0.84229012]
[1764731297179,0.19625591,887.01,886.19,0.84229012]
[1764731297778,0.19625591,887.01,886.22,0.84229012]
[1764731298180,0.19625591,887.01,886.23,0.84229012]
[1764731298979,0.19625591,887.01,886.22,0.84229012]
[1764731300279,0.19625591,887.01,886.23,0.84229012]
[1764731302180,0.19625591,887.01,886.22,0.84229012]
[1764731305188,0.19625591,887.01,886.33,0.84229012]
[1764731305387,0.19625591,887.01,886.35,0.84229012]
[1764731306086,0.19625591,887.01,886.19,1.12278946]
[1764731306087,0.19625591,887.01,886.34,0.84229012]
[1764731306985,0.19625591,887.01,886.33,0.84229012]
[1764731307386,0.19625591,887.01,886.32,0.84229012]
[1764731308488,0.19625591,887.01,886.31,0.84229012]
[1764731309389,0.19625591,887.01,886.24,0.84229012]
[1764731309785,0.19625591,887.01,886.21,0.84229012]
[1764731310089,0.19625591,887.01,886.19,0.84229012]
[1764731310486,0.19625591,887.01,886.18,0.84229012]
[1764731317391,0.19625591,887.01,886.17,0.84229012]
[1764731324498,0.19625591,887.01,886.15,0.84229012]
[1764731324795,0.19625591,887.01,886.12,0.84229012]
[1764731327100,0.19625591,887.01,886.13,0.84229012]
[1764731329100,0.19625591,887.01,886.14,0.84229012]
[1764731331299,0.19625591,887.01,886.15,0.84229012]
[1764731334298,0.19625591,887.01,885.99,1.12278946]
[1764731334299,0.19625591,887.01,886.16,0.84229012]
[1764731335303,0.19625591,887.01,886.15,0.84229012]
[1764731336306,0.19625591,887.01,886.16,0.84229012]
[1764731338403,0.19625591,887.01,886.17,0.84229012]
[1764731339206,0.19625591,887.01,886.18,0.84229012]
[1764731341404,0.19625591,887.01,886.19,0.84229012]
[1764731342009,0.19625591,887.01,886.18,0.84229012]
[1764731342206,0.19625591,887.01,886.19,0.84229012]
[1764731343110,0.19625591,887.01,886.21,0.84229012]
[1764731343413,0.19625591,887.01,886.2,0.84229012]
[1764731344213,0.19625591,887.01,886.22,0.84229012]
[1764731344812,0.19625591,887.01,886.21,0.84229012]
[1764731346416,0.19625591,887.01,886.27,0.84229012]
[1764731346612,0.19625591,887.01,886.41,0.84229012]
[1764731347413,0.19625591,887.01,886.43,0.84229012]
[1764731348516,0.19625591,887.01,886.41,0.84229012]
[1764731349412,0.19625591,887.01,886.4,0.84229012]
[1764731349819,0.19625591,887.01,886.41,0.84229012]
[1764731350120,0.19625591,887.01,886.42,0.84229012]
[1764731350316,0.19625591,887.01,886.41,0.84229012]
[1764731355020,0.19625591,887.01,886.42,0.84229012]
[1764731355222,0.19625591,887.01,886.43,0.84229012]
[1764731355421,0.19625591,887.01,886.47,0.84229012]
[1764731357123,0.19625591,887.01,886.49,0.84229012]
[1764731357326,0.19625591,887.01,886.47,0.84229012]
[1764731359227,0.19625591,887.01,886.46,0.84229012]
[1764731359829,0.19625591,887.01,886.45,0.84229012]
[1764731361224,0.19625591,887.01,886.44,0.84229012]
[1764731365229,0.19625591,887.01,886.43,0.84229012]
[1764731365633,0.19625591,887.01,886.44,0.84229012]
[1764731368135,0.19625591,887.01,886.43,0.84229012]
[1764731370735,0.19625591,887.01,886.42,0.84229012]
[1764731371631,0.19625591,887.01,886.41,0.84229012]
[1764731372336,0.19625591,887.01,886.4,0.84229012]
[1764731374237,0.19625591,887.01,886.21,0.84229012]
[1764731376934,0.19625591,887.01,886.22,1.442]
[1764731379336,0.19625591,887.01,886.23,0.84229012]
[1764731381238,1.11707841,887.21,886.23,0.84229012]
[1764731381438,0.19626255,886.82,886.23,0.84229012]
[1764731381641,1.11707841,887.21,886.23,0.84229012]
[1764731381940,0.19626255,886.68,886.23,0.84229012]
[1764731382141,1.11707841,887.21,886.23,0.84229012]
[1764731383343,0.19626255,886.97,886.24,0.84229012]
[1764731383943,0.19626255,886.97,886.32,0.84229012]
[1764731385239,0.19626255,886.97,886.33,0.84229012]
[1764731388848,0.19626255,886.97,886.36,0.84229012]
[1764731389245,0.19626255,886.97,886.35,0.84229012]
[1764731393147,0.19626255,886.97,886.36,0.84229012]
[1764731395452,0.19626255,886.97,886.43,0.84229012]
[1764731399152,0.19626255,886.97,886.44,0.84229012]
[1764731400158,0.19626255,886.97,886.45,0.84229012]
[1764731403261,0.19626255,886.97,886.46,0.84229012]
[1764731404461,0.19626255,886.97,886.4,0.84229012]
[1764731404862,0.19626255,886.97,886.35,0.84229012]
[1764731405263,0.19626255,886.97,886.36,0.84229012]
[1764731406159,0.19626255,886.97,886.37,0.84229012]
[1764731406461,0.19626255,886.97,886.33,0.84229012]
[1764731408271,0.19626255,886.97,886.32,0.84229012]
[1764731410466,0.19626255,886.97,886.31,0.84229012]
[1764731411072,0.19626255,886.97,886.22,2.28429012]
[1764731412069,0.19626255,886.97,886.23,0.84229012]
[1764731412372,0.19626255,886.97,886.22,2.28429012]
[1764731415371,0.19626255,886.97,886.22,1.442]
[1764731415970,0.19626255,886.97,886.21,0.84229012]
[1764731418179,0.19626255,886.97,886.22,1.343]
[1764731425286,0.19626255,886.97,886.41,0.84229012]
[1764731430283,0.19626255,886.97,886.42,0.84229012]
[1764731440695,0.19626255,886.97,886.22,1.343]
[1764731440696,0.19626255,886.97,886.46,0.84229012]
[1764731440900,0.19626255,886.97,886.48,0.84229012]
[1764731441101,0.19626255,886.97,886.61,0.84229012]
[1764731441302,0.19626255,886.97,886.6,0.84229012]
[1764731442801,0.19626255,886.97,886.59,0.84229012]
[1764731444204,0.19626255,886.97,886.58,0.84229012]
[1764731445903,0.19626255,886.97,886.6,0.84229012]
[1764731446302,0.19626255,886.97,886.61,1.637]
[1764731466420,0.19626255,886.97,886.67,0.84229012]
[1764731466622,1.11707841,887.85,886.67,0.84229012]
[1764731466823,0.19613203,887.09,886.7,0.84229012]
[1764731467026,1.11707841,887.88,886.7,0.84229012]
[1764731467223,1.11707841,887.89,886.69,0.84229012]
[1764731467424,0.19612871,887.09,886.75,0.84229012]
[1764731467623,1.11707841,887.94,886.75,0.84229012]
[1764731468123,2.79269603,888.74,886.61,1.637]
[1764731468124,1.11707841,887.95,886.74,0.84229012]
[1764731468829,0.19612263,887.65,886.74,0.84229012]
[1764731469224,0.19612263,887.65,886.73,0.84229012]
[1764731470127,0.19612263,887.65,886.72,0.84229012]
[1764731471136,0.19612263,887.65,886.71,0.84229012]
[1764731471333,0.19612263,887.65,886.72,0.84229012]
[1764731472033,0.19612263,887.65,886.73,0.84229012]
[1764731472327,0.19612263,887.65,886.87,0.84229012]
[1764731472736,0.19612263,887.65,886.81,0.84229012]
[1764731473234,0.19612263,887.65,886.8,0.84229012]
[1764731473531,0.19612263,887.65,886.82,0.84229012]
[1764731474235,0.19612263,887.65,886.81,0.84229012]
[1764731475235,0.19612263,887.65,886.8,0.84229012]
[1764731477133,0.19612263,887.65,886.79,0.84229012]